bitfinex/quotes_ETHUSD_20251026
["timestamp","ask_amount","ask_price","bid_price","bid_amount"]
[1761499227285,0.001,4061.4,4061.3,13.43630703]
[1761499227456,0.001,4061.4,4061.3,12.97510703]
[1761499229181,0.001,4061.4,4061.3,9.87310703]
[1761499229386,0.001,4061.4,4061.3,12.87564004]
[1761499232388,0.001,4061.4,4061.3,8.99564004]
[1761499255898,0.001,4061.4,4061.3,5.66413395]
[1761499256088,0.001,4061.4,4061.3,5.46535968]
[1761499257327,0.001,4061.4,4061.3,4.14066577]
[1761499258963,0.1,4061.4,4061.3,4.14066577]
[1761499262364,0.001,4061.4,4061.3,5.02297531]
[1761499262672,0.001,4061.4,4061.3,7.11746577]
[1761499262852,0.001,4061.4,4061.3,8.67680599]
[1761499263031,0.001,4061.4,4061.3,10.0014999]
[1761499263220,0.001,4061.4,4061.3,8.67680599]
[1761499263624,0.001,4061.4,4061.3,8.77527952]
[1761499264158,0.001,4061.4,4061.3,9.04154182]
[1761499270480,0.001,4061.4,4061.3,12.92154182]
[1761499272389,0.001,4061.4,4061.3,12.65527952]
[1761499272689,0.001,4061.4,4061.3,12.77847952]
[1761499272849,0.001,4061.4,4061.3,14.53948019]
[1761499274480,0.001,4061.4,4061.3,14.25647952]
[1761499274686,1e-08,4061.6,4061.5,2.46214452]
[1761499274884,1e-08,4061.6,4061.5,6.03880692]
[1761499275089,1e-08,4061.6,4061.5,6.50160692]
[1761499275473,1e-08,4061.6,4061.5,6.60006494]
[1761499276660,1e-08,4061.6,4061.5,10.34780864]
[1761499277288,1e-08,4061.6,4061.5,8.58494494]
[1761499279178,1e-08,4061.6,4061.5,12.46494494]
[1761499279584,1e-08,4061.6,4061.5,14.22780864]
[1761499279782,1e-08,4062.9,4062.8,4.24235669]
[1761499279986,1e-08,4062.9,4062.8,8.88859827]
[1761499280206,1e-08,4062.9,4062.8,12.63138913]
[1761499280710,1e-08,4062.9,4062.8,10.87347827]
[1761499280915,1e-08,4062.9,4062.8,11.05387827]
[1761499281409,1e-08,4062.9,4062.8,12.62960605]
[1761499281611,1e-08,4062.9,4062.8,11.65992605]
[1761499281781,1e-08,4062.9,4062.8,10.10033597]
[1761499282603,1e-08,4062.9,4062.8,9.41173597]
[1761499282803,1e-08,4062.9,4062.8,9.25024633]
[1761499283177,1e-08,4062.9,4062.8,7.93373597]
[1761499285282,0.01,4063.9,4063.8,4.16455102]
[1761499285283,1e-08,4063.9,4063.8,4.16455102]
[1761499285492,1e-08,4063.9,4063.8,12.26390988]
[1761499285708,1e-08,4063.9,4063.8,12.72670988]
[1761499285880,1e-08,4063.9,4063.8,12.97290988]
[1761499286091,1e-08,4063.9,4063.8,13.7108401]
[1761499286306,0.01,4065.9,4065.3,2.4598397]
[1761499286614,0.1207,4065.8,4065.7,2.45960105]
[1761499286794,0.2197,4065.8,4065.7,2.45960105]
[1761499287826,0.88494296,4068.7,4065.8,2.45954055]
[1761499287979,0.01,4068.9,4066.1,1.5552]
[1761499288192,2.45839343,4067.7,4065.9,0.95813416]
[1761499288391,0.50688,4067.8,4066.3,2.45922679]
[1761499288696,0.73775783,4067.2,4066.1,3.113]
[1761499288895,2.46888072,4066.9,4066.1,3.113]
[1761499289197,0.01,4066.9,4066.1,3.113]
[1761499289398,0.01,4066.9,4066.6,2.45904507]
[1761499289601,0.01,4066.9,4066.8,0.1232]
[1761499291131,0.01,4066.9,4066.4,0.1232]
[1761499291291,0.27927455,4066.8,4066.4,0.1232]
[1761499291719,2.73822619,4066.8,4066.4,0.1232]
[1761499292035,2.45910637,4066.6,4066.2,0.1232]
[1761499292240,2.7382491,4066.8,4066.2,0.1232]
[1761499293426,0.27927455,4066.8,4066.2,0.1232]
[1761499293604,0.30720547,4066.7,4066.2,0.1232]
[1761499293802,2.76620618,4066.7,4066.2,0.1232]
[1761499294100,0.50688,4066.6,4065.0,2.4600246]
[1761499294300,2.45946649,4066.0,4065.7,0.1232]
[1761499294505,2.70543172,4065.9,4065.7,0.1232]
[1761499294689,2.60944055,4065.8,4065.0,1.5552]
[1761499294889,2.60944055,4065.8,4065.5,0.1232]
[1761499295226,2.60945612,4065.8,4065.5,0.1232]
[1761499295391,0.54380299,4065.7,4065.5,0.1232]
[1761499295819,0.1499,4065.8,4064.9,3.113]
[1761499296098,2.45976112,4065.5,4065.0,0.1232]
[1761499296292,2.45977108,4065.5,4064.6,4.01546514]
[1761499296629,0.1499,4064.7,4064.6,4.01546514]
[1761499297903,0.54380299,4065.7,4064.9,2.46007793]
[1761499298106,0.3153304,4065.6,4064.9,2.46007793]
[1761499298295,0.3153304,4065.6,4065.0,2.45997564]
[1761499298496,0.1499,4065.8,4064.6,1.5552]
[1761499298805,0.1499,4065.8,4065.6,2.45961077]
[1761499299398,0.01,4066.9,4065.7,3.114]
[1761499299717,0.01,4066.9,4065.8,2.45954055]
[1761499300031,0.01,4066.9,4065.7,3.114]
[1761499300032,0.01,4066.9,4066.8,2.45893577]
[1761499300337,0.01,4066.9,4066.1,1.5552]
[1761499300338,0.01,4066.9,4066.4,2.45913423]
[1761499300498,0.01,4066.9,4066.7,2.45899311]
[1761499301111,0.01,4066.9,4066.8,2.45893577]
[1761499301698,0.01,4066.9,4066.7,2.45898771]
[1761499305110,0.01,4066.9,4066.8,2.45893577]
[1761499305309,0.01,4066.9,4066.8,5.57293577]
[1761499305531,0.011,4066.9,4066.8,6.37613439]
[1761499305727,0.011,4066.9,4066.8,8.39633439]
[1761499306005,0.011,4066.9,4066.8,7.93133439]
[1761499306211,0.011,4066.9,4066.8,8.51953439]
[1761499307016,0.011,4066.9,4066.8,8.05453439]
[1761499307208,0.011,4066.9,4066.8,4.94053439]
[1761499307408,0.011,4066.9,4066.8,8.05653439]
[1761499307812,0.2117,4066.9,4066.8,8.05653439]
[1761499308013,0.2117,4066.9,4066.8,7.25333577]
[1761499308209,0.2117,4066.9,4066.5,2.45910911]
[1761499308514,0.2117,4066.9,4065.8,0.65623674]
[1761499308714,0.2117,4066.9,4065.9,5.57645936]
[1761499308937,0.2117,4066.9,4066.0,1.5552]
[1761499309135,3.01141528,4066.9,4066.1,2.45935909]
[1761499309442,2.45894796,4066.8,4066.0,2.45940826]
[1761499309810,3.01142041,4066.9,4066.1,2.45935622]
[1761499310240,2.45895187,4066.8,4066.0,2.45941556]
[1761499310623,0.2117,4066.9,4066.0,2.45941957]
[1761499310820,0.2117,4066.9,4066.0,3.01706153]
[1761499311238,0.2117,4066.9,4066.2,2.45925651]
[1761499311536,0.2117,4066.9,4066.1,2.45935287]
[1761499311728,0.2117,4066.9,4066.3,2.45919314]
[1761499312313,0.2117,4066.9,4066.4,2.45917362]
[1761499312513,0.2117,4066.9,4066.3,2.45922237]
[1761499314413,2.6705758,4066.9,4066.2,2.45928348]
[1761499314743,0.79840848,4066.9,4065.9,3.77323674]
[1761499314964,2.45905167,4066.7,4065.9,1.5552]
[1761499315121,2.45906156,4066.6,4065.9,1.5552]
[1761499315444,2.45906156,4066.6,4065.9,3.11570734]
[1761499315647,2.45906156,4066.6,4065.9,0.65623674]
[1761499315848,0.50688,4066.8,4065.3,0.65623674]
[1761499316027,0.50688,4066.5,4065.3,0.65623674]
[1761499316224,0.1499,4065.4,4065.3,0.65623674]
[1761499317143,0.1499,4065.4,4065.2,0.65623674]
[1761499317320,0.1499,4065.4,4065.0,0.002]
[1761499317810,2.45988616,4065.3,4065.0,0.002]
[1761499318262,2.58308616,4065.3,4065.0,0.002]
[1761499318468,0.1232,4065.3,4065.0,0.002]
[1761499318961,0.099,4065.2,4065.0,0.002]
[1761499320744,0.40685032,4066.8,4065.5,2.45968842]
[1761499320943,0.099,4066.7,4065.6,2.45964241]
[1761499321265,0.50688,4066.6,4065.9,2.45947997]
[1761499321462,0.60588,4066.7,4065.9,2.45947997]
[1761499321645,0.099,4066.7,4066.0,2.45938136]
[1761499321843,0.099,4066.6,4065.6,0.65623674]
[1761499322045,0.099,4066.6,4066.2,2.45925161]
[1761499322241,0.099,4066.6,4065.7,0.65623674]
[1761499322447,0.2117,4066.9,4066.5,2.4590733]
[1761499322683,0.2117,4066.9,4066.3,2.45923235]
[1761499323468,0.2117,4066.9,4066.0,0.65623674]
[1761499323669,0.2117,4066.9,4066.6,2.45900705]
[1761499325080,0.2117,4066.9,4066.5,2.45911567]
[1761499325243,0.3107,4066.9,4066.5,2.45911567]
[1761499325643,0.3107,4066.9,4066.6,2.45905527]
[1761499327236,0.2117,4066.9,4066.1,4.67076462]
[1761499327437,0.099,4066.8,4066.2,3.36595181]
[1761499328074,0.2117,4066.9,4066.2,3.36595181]
[1761499328370,0.2117,4066.9,4066.4,2.45917331]
[1761499328672,0.099,4066.8,4066.3,2.45918415]
[1761499328975,0.099,4066.8,4066.4,2.45917121]
[1761499329275,0.2117,4066.9,4066.4,2.45917121]
[1761499329441,0.2117,4066.9,4066.7,2.45897984]
[1761499330450,0.2117,4066.9,4066.1,2.2235]
[1761499330451,0.011,4066.9,4066.8,2.45893577]
[1761499330671,0.011,4066.9,4066.8,2.95073316]
[1761499330854,0.011,4066.9,4066.8,3.07393316]
[1761499332775,0.011,4066.9,4066.8,3.52773316]
[1761499333863,0.2097,4066.9,4066.8,0.1232]
[1761499334176,0.3107,4066.9,4066.8,0.1232]
[1761499334782,0.3107,4066.9,4066.6,2.45901058]
[1761499334973,0.2097,4066.9,4066.6,2.45901058]
[1761499335292,0.101,4066.8,4066.5,0.1232]
[1761499335447,0.101,4066.8,4066.5,2.58231583]
[1761499335643,0.101,4066.8,4066.5,0.1232]
[1761499336581,0.101,4066.8,4066.5,2.5823114]
[1761499336948,0.101,4066.8,4066.5,0.1232]
[1761499337968,0.101,4066.8,4066.5,2.582305]
[1761499338512,0.101,4066.8,4066.5,0.1232]
[1761499340404,0.101,4066.8,4066.5,2.58229772]
[1761499341096,0.2097,4066.9,4066.6,2.45905256]
[1761499341598,0.3107,4066.9,4066.5,2.5822984]
[1761499342981,0.101,4066.8,4066.5,2.5822984]
[1761499343320,0.101,4066.8,4066.5,0.1232]
[1761499343670,0.101,4066.8,4066.5,2.58230446]
[1761499344608,0.2097,4066.9,4066.6,2.45904453]
[1761499344813,0.3107,4066.9,4066.6,2.45904453]
[1761499345014,3.4277,4066.9,4066.6,2.45904453]
[1761499345213,3.4277,4066.9,4066.5,0.1232]
[1761499345411,0.101,4066.8,4066.5,0.1232]
[1761499345727,0.101,4066.8,4066.5,2.58230395]
[1761499347595,3.3267,4066.9,4066.5,2.58230395]
[1761499347799,3.3267,4066.9,4066.6,2.45902535]
[1761499348733,3.3257,4066.9,4066.6,2.45902535]
[1761499349309,3.3257,4066.9,4066.7,0.65623674]
[1761499349623,3.3257,4066.9,4066.6,3.11526209]
[1761499351128,0.101,4066.8,4066.7,0.65623674]
[1761499352349,3.3257,4066.9,4066.7,0.65623674]
[1761499352519,0.101,4066.8,4066.7,0.65623674]
[1761499353615,3.3257,4066.9,4066.5,3.33409616]
[1761499353845,3.4267,4066.9,4066.8,0.6600458]
[1761499355948,3.4267,4066.9,4066.7,0.6600458]
[1761499356150,0.101,4066.8,4066.7,0.6600458]
[1761499356445,0.101,4066.8,4066.6,0.6600458]
[1761499356446,0.2242,4066.8,4066.6,0.6600458]
[1761499356836,0.1232,4066.8,4066.6,0.6600458]
[1761499357016,0.101,4066.7,4066.6,0.6600458]
[1761499358252,0.101,4066.7,4066.4,0.87498233]
[1761499359147,0.1232,4066.8,4066.4,0.87498233]
[1761499359351,0.1232,4066.8,4066.7,0.66031434]
[1761499361362,3.127,4066.9,4066.8,2.45893577]
[1761499361560,3.127,4066.9,4066.8,2.92793577]
[1761499362059,0.011,4066.9,4066.8,2.92793577]
[1761499365163,0.011,4066.9,4066.8,2.45893577]
[1761499365459,0.011,4066.9,4066.8,3.33892986]
[1761499367543,0.011,4066.9,4066.8,3.80792986]
[1761499367743,0.011,4066.9,4066.8,3.33892986]
[1761499368241,0.011,4066.9,4066.8,3.80792986]
[1761499369038,0.011,4066.9,4066.8,5.65207154]
[1761499369263,0.011,4066.9,4066.8,6.55355094]
[1761499369674,0.011,4066.9,4066.8,5.24107745]
[1761499371356,0.011,4066.9,4066.8,5.36427745]
[1761499377886,0.011,4066.9,4066.8,8.47327745]
[1761499380003,0.011,4066.9,4066.8,8.00427745]
[1761499380391,0.011,4066.9,4066.8,8.47327745]
[1761499380909,0.011,4066.9,4066.8,5.36427745]
[1761499381710,0.011,4066.9,4066.8,4.89527745]
[1761499381907,0.011,4066.9,4066.8,5.01656618]
[1761499382726,0.011,4066.9,4066.8,2.58213577]
[1761499385211,0.2107,4066.9,4066.6,0.87923041]
[1761499385525,0.2107,4066.9,4066.1,0.002]
[1761499385526,0.50688,4066.6,4066.1,0.002]
[1761499385926,0.1,4066.5,4066.1,0.002]
[1761499386500,3.211,4066.5,4066.1,0.002]
[1761499387302,5.67013684,4066.5,4066.1,0.002]
[1761499387507,0.1,4066.4,4066.1,0.002]
[1761499388331,2.45928801,4066.3,4066.1,0.002]
[1761499388538,2.9661786,4066.2,4066.1,0.002]
[1761499388695,3.0661786,4066.2,4066.1,0.002]
[1761499391002,6.1781786,4066.2,4066.1,0.002]
[1761499395305,3.1893786,4066.2,4066.1,0.002]
[1761499395506,6.90442406,4066.2,4066.1,0.002]
[1761499397460,3.79142406,4066.2,4066.1,0.002]
[1761499397759,6.90642406,4066.2,4066.1,0.002]
[1761499398330,8.46162406,4066.2,4066.1,0.002]
[1761499398853,8.56004162,4066.2,4066.1,0.002]
[1761499404157,8.46162406,4066.2,4066.1,0.002]
[1761499407272,3.06134406,4066.2,4066.1,0.002]
[1761499407569,5.6732986,4066.2,4066.1,0.002]
[1761499407770,6.1801786,4066.2,4066.1,0.002]
[1761499407974,7.7353786,4066.2,4066.1,0.002]
[1761499410377,7.8337981,4066.2,4066.1,0.002]
[1761499410567,8.90037453,4066.2,4066.1,0.002]
[1761499411496,0.001,4066.5,4066.1,0.2232]
[1761499411645,0.001,4066.5,4066.1,0.6542]
[1761499412075,3.127,4066.4,4066.2,0.431]
[1761499413170,0.50688,4066.3,4066.1,0.002]
[1761499413496,2.9661786,4066.2,4066.1,0.002]
[1761499413691,0.50688,4066.2,4066.1,0.002]
[1761499414295,2.9661786,4066.2,4066.1,0.002]
[1761499416606,0.001,4066.4,4066.3,2.45923812]
[1761499416784,0.001,4066.4,4066.3,3.51352086]
[1761499417500,0.001,4066.4,4066.3,3.63672086]
[1761499418708,0.001,4066.4,4066.3,4.29579774]
[1761499420218,0.001,4066.4,4066.3,3.63672086]
[1761499426895,0.001,4066.4,4066.3,2.58243812]
[1761499427703,0.001,4066.4,4066.3,2.45923812]
[1761499427903,0.001,4066.4,4066.3,2.92473812]
[1761499432147,0.001,4066.4,4066.3,2.45923812]
[1761499433041,0.001,4066.4,4066.1,2.58455891]
[1761499433042,0.001,4066.4,4066.2,2.45929038]
[1761499433346,0.001,4066.4,4066.3,2.45923812]
[1761499437625,0.001,4066.4,4066.3,2.92473812]
[1761499438746,0.001,4066.4,4066.3,2.45923812]
[1761499441266,0.001,4066.4,4066.3,3.118315]
[1761499443765,0.001,4066.4,4066.1,3.46378226]
[1761499443766,0.001,4066.4,4066.1,0.002]
[1761499443956,0.45587,4066.3,4066.1,0.002]
[1761499444668,0.60588,4066.2,4066.1,0.002]
[1761499444971,3.0651786,4066.2,4066.1,0.002]
[1761499455794,4.6203786,4066.2,4066.1,0.002]
[1761499460670,7.7393786,4066.2,4066.1,0.002]
[1761499460870,8.80502393,4066.2,4066.1,0.002]
[1761499465913,8.80602393,4066.2,4066.1,0.002]
[1761499472088,8.80202393,4066.2,4066.1,0.002]
[1761499475521,5.68702393,4066.2,4066.1,0.002]
[1761499475724,8.80102393,4066.2,4066.1,0.002]
[1761499478509,5.68702393,4066.2,4066.1,0.002]
[1761499478824,8.80002393,4066.2,4066.1,0.002]
[1761499488743,8.70102393,4066.2,4066.1,0.002]
[1761499496452,2.4602986,4066.2,4066.1,0.2323]
[1761499496753,5.6924986,4066.2,4066.1,0.6705]
[1761499497151,6.1993786,4066.2,4066.1,0.6705]
[1761499497534,6.1993786,4066.2,4066.1,0.2323]
[1761499498054,6.1993786,4066.2,4066.1,0.6705]
[1761499501239,3.0903786,4066.2,4066.1,0.6705]
[1761499501826,6.1973786,4066.2,4066.1,0.6705]
[1761499504344,3.0903786,4066.2,4066.1,0.6705]
[1761499504539,6.1973786,4066.2,4066.1,0.6705]
[1761499506190,3.0903786,4066.2,4066.1,0.6705]
[1761499506380,6.1973786,4066.2,4066.1,0.6705]
[1761499507768,3.0903786,4066.2,4066.1,0.6705]
[1761499507976,6.1973786,4066.2,4066.1,0.6705]
[1761499508182,2.4602986,4066.2,4066.1,0.6705]
[1761499508394,5.6904986,4066.2,4066.1,0.6705]
[1761499511675,5.6404986,4066.2,4066.1,0.6705]
[1761499513595,2.5334986,4066.2,4066.1,0.6705]
[1761499513798,5.6404986,4066.2,4066.1,0.6705]
[1761499514173,2.5334986,4066.2,4066.1,0.6705]
[1761499514374,5.6404986,4066.2,4066.1,0.6705]
[1761499517010,5.6404986,4066.2,4066.1,0.2323]
[1761499517174,5.6404986,4066.2,4066.1,0.7066]
[1761499517608,5.6414986,4066.2,4066.1,0.7066]
[1761499517819,6.1483786,4066.2,4066.1,0.002]
[1761499518007,7.00933989,4066.2,4066.1,0.002]
[1761499523702,7.30703989,4066.2,4066.1,0.002]
[1761499524423,7.00933989,4066.2,4066.1,0.002]
[1761499527699,7.10833989,4066.2,4066.1,0.002]
[1761499528758,7.00933989,4066.2,4066.1,0.002]
[1761499528901,7.10833989,4066.2,4066.1,0.002]
[1761499529097,7.00933989,4066.2,4066.1,0.002]
[1761499533857,8.56453989,4066.2,4066.1,0.002]
[1761499534060,8.66353989,4066.2,4066.1,0.002]
[1761499539673,8.56453989,4066.2,4066.1,0.002]
[1761499558203,5.45753989,4066.2,4066.1,0.002]
[1761499558492,7.7025786,4066.2,4066.1,0.002]
[1761499565774,4.5965786,4066.2,4066.1,0.002]
[1761499566074,7.7025786,4066.2,4066.1,0.4589]
[1761499567188,7.7025786,4066.2,4066.1,0.002]
[1761499568604,3.107,4066.2,4066.1,0.4589]
[1761499568920,3.107,4066.2,4066.1,1.1376]
[1761499569398,3.107,4066.2,4066.1,1.33994647]
[1761499571731,0.001,4066.2,4066.1,1.33994647]
[1761499571949,1.703,4066.2,4066.1,1.33994647]
[1761499579425,3.106,4066.2,4066.1,1.33994647]
[1761499580858,3.106,4066.2,4066.1,3.79930556]
[1761499584631,0.001,4066.2,4066.1,5.35450556]
[1761499585563,0.001,4066.2,4066.1,8.45950556]
[1761499592076,0.001,4066.2,4066.1,1.54247719]
[1761499592371,0.001,4066.2,4066.1,1.1315]
[1761499595184,0.001,4066.2,4066.1,0.6807]
[1761499599867,0.001,4066.2,4066.1,1.3453]
[1761499600398,0.001,4066.2,4066.1,4.46512441]
[1761499604983,0.001,4066.2,4066.1,1.34116532]
[1761499605687,0.001,4066.2,4066.1,1.78946532]
[1761499607085,0.001,4066.2,4066.1,5.23675567]
[1761499608580,0.001,4066.2,4066.1,4.57629035]
[1761499613128,0.001,4066.2,4066.1,2.11693126]
[1761499613821,0.001,4066.2,4066.1,1.3453]
[1761499615927,0.001,4066.2,4066.1,0.6807]
[1761499616928,0.001,4066.2,4066.1,1.129]
[1761499617114,0.001,4066.2,4066.1,1.79018637]
[1761499617295,0.001,4066.2,4066.1,1.129]
[1761499623756,0.001,4066.2,4066.1,3.58835909]
[1761499623931,0.001,4066.2,4066.1,4.29393834]
[1761499624352,0.001,4066.2,4066.1,1.83457925]
[1761499625349,0.001,4066.2,4066.1,4.29393834]
[1761499628158,0.001,4066.2,4066.1,5.17664475]
[1761499629151,0.001,4066.2,4066.1,2.71728566]
[1761499629323,0.001,4066.2,4066.1,1.129]
[1761499629523,0.001,4066.2,4066.1,0.002]
[1761499632556,0.1,4066.2,4066.1,0.002]
[1761499633055,0.001,4066.2,4066.1,0.002]
[1761499634672,0.001,4066.2,4066.1,0.66361296]
[1761499637132,0.001,4066.2,4066.1,0.002]
[1761499637463,0.001,4066.2,4066.1,0.66355242]
[1761499641669,0.001,4066.2,4066.1,0.002]
[1761499641879,0.001,4066.2,4066.1,0.66347812]
[1761499642777,0.001,4066.2,4066.1,0.87767812]
[1761499643078,0.001,4066.2,4066.1,1.33997812]
[1761499644403,0.001,4066.2,4066.1,1.89449808]
[1761499644857,0.001,4066.2,4066.1,3.89155717]
[1761499645056,0.001,4066.2,4066.1,3.71697264]
[1761499645325,0.001,4066.2,4066.1,3.81657905]
[1761499645997,0.001,4066.2,4066.1,0.78777065]
[1761499646763,0.001,4066.2,4066.1,0.1262]
[1761499646966,0.001,4066.2,4066.1,0.78775791]
[1761499647499,0.001,4066.2,4066.1,0.1262]
[1761499654907,0.001,4066.2,4066.1,0.5885]
[1761499662228,0.001,4066.2,4066.1,0.1262]
[1761499662402,0.001,4066.2,4066.1,0.66380554]
[1761499662601,0.001,4066.2,4066.1,0.002]
[1761499662602,2.5592986,4066.2,4066.1,0.002]
[1761499662919,3.19116653,4066.2,4066.1,0.002]
[1761499664331,3.31436653,4066.2,4066.1,0.002]
[1761499664537,3.82124653,4066.2,4066.1,0.002]
[1761499668502,3.82124653,4066.2,4066.1,0.012]
[1761499671062,5.37644653,4066.2,4066.1,0.012]
[1761499671245,4.62043909,4066.1,4066.0,1e-08]
[1761499671446,11.1316532,4066.1,4066.0,1e-08]
[1761499674135,11.23009402,4066.1,4066.0,1e-08]
[1761499674333,11.8908325,4066.1,4066.0,1e-08]
[1761499675638,11.8908325,4066.1,4065.5,1e-08]
[1761499675639,4.52174155,4065.6,4065.5,1e-08]
[1761499675838,7.62474155,4065.6,4065.5,1e-08]
[1761499676172,8.63461571,4065.6,4065.5,1e-08]
[1761499676374,8.73305895,4065.6,4065.5,1e-08]
[1761499677550,3.11668357,4065.2,4065.1,1e-08]
[1761499677752,7.87388357,4065.2,4065.1,1e-08]
[1761499678277,7.97233165,4065.2,4065.1,1e-08]
[1761499678439,8.47138909,4065.2,4065.1,1e-08]
[1761499681097,5.26938909,4065.2,4065.1,1e-08]
[1761499681275,8.49658909,4065.2,4065.1,1e-08]
[1761499681976,5.39258909,4065.2,4065.1,1e-08]
[1761499682168,8.49658909,4065.2,4065.1,1e-08]
[1761499683374,8.34668909,4065.2,4065.1,1e-08]
[1761499683575,2.58310357,4065.2,4065.1,1e-08]
[1761499683774,5.68710357,4065.2,4065.1,0.66670001]
[1761499684398,6.19398357,4065.2,4065.1,0.66670001]
[1761499685400,6.19398357,4065.2,4065.1,0.22800001]
[1761499685786,6.19398357,4065.2,4065.1,1e-08]
[1761499686099,6.19398357,4065.2,4065.1,0.43870001]
[1761499688598,6.19398357,4065.2,4065.1,1e-08]
[1761499689808,8.6145644,4065.2,4065.1,1e-08]
[1761499690007,8.4913644,4065.2,4065.1,1e-08]
[1761499690200,8.5903644,4065.2,4065.1,1e-08]
[1761499691576,8.68880861,4065.2,4065.1,1e-08]
[1761499697217,8.5903644,4065.2,4065.1,1e-08]
[1761499697422,9.25110288,4065.2,4065.1,1e-08]
[1761499697918,8.5903644,4065.2,4065.1,1e-08]
[1761499698303,9.25110288,4065.2,4065.1,1e-08]
[1761499698825,9.25210288,4065.2,4065.1,1e-08]
[1761499699421,8.5913644,4065.2,4065.1,1e-08]
[1761499699919,8.7145644,4065.2,4065.1,1e-08]
[1761499700219,9.37669332,4065.2,4065.1,1e-08]
[1761499700533,8.6155644,4065.2,4065.1,1e-08]
[1761499701697,8.7145644,4065.2,4065.1,1e-08]
[1761499706500,9.3769099,4065.2,4065.1,1e-08]
[1761499707401,9.2779099,4065.2,4065.1,1e-08]
[1761499708133,9.3769099,4065.2,4065.1,1e-08]
[1761499709714,9.2779099,4065.2,4065.1,1e-08]
[1761499715546,8.6155644,4065.2,4065.1,1e-08]
[1761499719359,9.49825339,4065.2,4065.1,1e-08]
[1761499719559,9.59775339,4065.2,4065.1,1e-08]
[1761499720369,9.49825339,4065.2,4065.1,1e-08]
[1761499720931,8.6155644,4065.2,4065.1,1e-08]
[1761499724162,8.6155644,4065.2,4065.1,0.46530001]
[1761499732491,8.6155644,4065.2,4065.1,1e-08]
[1761499734162,9.27923124,4065.2,4065.1,0.46530001]
[1761499734862,9.27923124,4065.2,4065.1,1e-08]
[1761499738884,9.27923124,4065.2,4065.1,0.46530001]
[1761499739195,2.18628,4065.2,4065.1,1e-08]
[1761499739399,0.001,4065.2,4065.1,0.69320001]
[1761499739598,5.56390357,4065.2,4065.1,0.69320001]
[1761499740405,6.07078357,4065.2,4065.1,0.69320001]
[1761499741473,3.61088,4065.2,4065.1,0.69320001]
[1761499744267,6.07078357,4065.2,4065.1,0.69320001]
[1761499744494,6.07078357,4065.2,4065.1,0.46530001]
[1761499745774,6.07078357,4065.2,4065.1,1e-08]
[1761499746196,6.07078357,4065.2,4065.1,0.43410001]
[1761499747078,6.07078357,4065.2,4065.1,0.66080001]
[1761499749506,6.19398357,4065.2,4065.1,0.66080001]
[1761499756680,6.19398357,4065.2,4065.1,1e-08]
[1761499757024,7.05936255,4065.2,4065.1,1e-08]
[1761499775683,7.15836255,4065.2,4065.1,1e-08]
[1761499778483,7.05936255,4065.2,4065.1,1e-08]
[1761499779783,7.15836255,4065.2,4065.1,1e-08]
[1761499781181,7.05936255,4065.2,4065.1,1e-08]
[1761499781373,8.71356255,4065.2,4065.1,1e-08]
[1761499784186,7.15836255,4065.2,4065.1,1e-08]
[1761499784874,8.71356255,4065.2,4065.1,1e-08]
[1761499787292,8.61456255,4065.2,4065.1,1e-08]
[1761499787461,8.71356255,4065.2,4065.1,1e-08]
[1761499787662,7.15836255,4065.2,4065.1,1e-08]
[1761499787893,8.71356255,4065.2,4065.1,1e-08]
[1761499788223,8.61456255,4065.2,4065.1,1e-08]
[1761499793163,8.71356255,4065.2,4065.1,1e-08]
[1761499796807,8.81201742,4065.2,4065.1,1e-08]
[1761499803521,5.61001742,4065.2,4065.1,1e-08]
[1761499803706,9.37418697,4065.2,4065.1,1e-08]
[1761499804211,8.71101742,4065.2,4065.1,1e-08]
[1761499810129,4.52252829,4064.3,4064.2,1e-08]
[1761499810423,8.28595125,4064.3,4064.2,1e-08]
[1761499810650,8.38545125,4064.3,4064.2,1e-08]
[1761499811362,8.28595125,4064.3,4064.2,1e-08]
[1761499811566,7.62252829,4064.3,4064.2,1e-08]
[1761499811725,9.00941169,4064.3,4064.2,1e-08]
[1761499820169,9.13261169,4064.3,4064.2,1e-08]
[1761499825361,4.62208883,4064.2,4064.1,1e-08]
[1761499826189,4.72056939,4064.2,4064.1,1e-08]
[1761499826489,5.58594837,4064.2,4064.1,1e-08]
[1761499827275,6.46863736,4064.2,4064.1,1e-08]
[1761499831509,4.52319439,4063.2,4063.1,0.01]
[1761499831719,7.62319439,4063.2,4063.1,0.01]
[1761499831881,8.69784913,4063.2,4063.1,0.01]
[1761499832283,2.96829728,4062.7,4062.6,0.2243]
[1761499832491,6.06829728,4062.7,4062.6,0.6803]
[1761499838333,6.06829728,4062.7,4062.6,0.2243]
[1761499838488,6.06829728,4062.7,4062.6,0.6803]
[1761499840792,6.06829728,4062.7,4061.3,0.6803]
[1761499840793,2.96860025,4062.2,4062.1,0.4527]
[1761499840988,6.06960025,4062.2,4062.1,0.4527]
[1761499841423,6.19280025,4062.2,4062.1,0.4527]
[1761499841617,6.19280025,4062.2,4062.1,0.6757]
[1761499848039,3.09180025,4062.2,4062.1,0.6757]
[1761499848238,6.19280025,4062.2,4062.1,0.6757]
[1761499849250,6.19280025,4062.2,4062.1,0.6777]
[1761499849925,0.63008,4062.2,4062.1,0.6777]
[1761499850118,3.2242,4062.2,4062.1,0.6777]
[1761499850552,3.73108,4062.2,4062.1,0.6777]
[1761499855256,3.2242,4062.2,4062.1,0.6777]
[1761499855665,3.2242,4062.2,4062.1,0.9916589]
[1761499857967,0.1232,4062.6,4062.2,2.46171005]
[1761499858128,3.1,4062.5,4062.2,2.90441005]
[1761499858328,3.1,4062.5,4062.3,0.4427]
[1761499858723,3.1,4062.5,4062.3,1.18131517]
[1761499858929,3.1,4062.5,4062.4,0.4427]
[1761499859175,3.1,4062.5,4062.4,0.83050252]